[Event "Croatian Championship 2022"]
[Site "Split"]
[Date "2022.12.01"]
[Round "3.1"]
[White "Kozul, Zdenko"]
[Black "Bukal, Vladimir Jr."]
[Result "1/2-1/2"]
[ECO "A64"]
[WhiteElo "2539"]
[BlackElo "2411"]
[Annotator "TA"]
[PlyCount "25"]
[EventDate "2022.11.29"]
[EventType "tourn"]
[EventCountry "CRO"]
[SourceTitle "playchess.com"]
[Source "ChessBase"]
[SourceQuality "1"]
[TimeControl "40/5400+30:1800+30"]

{[%evp 22,25,17,1,10,-13]} 1. d4 {[%emt 0:00:07]} e6 {[%emt 0:00:07]} 2. c4 {[%emt 0:00:15]} Nf6 {[%emt 0:00:09]} 3. g3 {[%emt 0:02:05]} c5 {[%emt 0:00:14]} 4. d5 {[%emt 0:00:10]} exd5 {[%emt 0:00:23]} 5. cxd5 {[%emt 0:00:07]} d6 {[%emt 0:00:06]} 6. Nc3 {[%emt 0:00:16]} g6 {[%emt 0:00:07]} 7. Bg2 {[%emt 0:00:12]} Bg7 {[%emt 0:00:06]} 8. Nf3 {[%emt 0:00:17]} O-O {[%emt 0:00:06]} 9. O-O {[%emt 0:00:06]} Re8 {[%emt 0:00:08]} 10. Re1 {[%emt 0:05:55]} a6 {[%emt 0:14:22]} 11. a4 {[%emt 0:05:44]} Nbd7 {[%emt 0:10:35]} 12. Nd2 {[%emt 0:06:52]} b6 {[%emt 0:04:55] [#] A64: Modern Benoni: Fianchetto Variation: 9...Nbd7 10 Nd2 a6 11 a4 Re8.} 13. Rb1 $146 {[%emt 0:20:48] An uneventful encounter.} ({Predecessor:} 13. h3 Rb8 14. Nc4 Ne5 15. Nxe5 Rxe5 16. e4 Re8 17. f4 Nd7 18. Qd3 b5 19. axb5 axb5 {0-1 (34) Kociscak,J (2496)-Navara,D (2733) Ostrava 2019}) 1/2-1/2

[Event "Croatian Championship 2022"]
[Site "Split"]
[Date "2022.12.01"]
[Round "3.2"]
[White "Bosiocic, Marin"]
[Black "Martinovic, Sasa"]
[Result "1/2-1/2"]
[ECO "A22"]
[WhiteElo "2536"]
[BlackElo "2557"]
[Annotator "TA"]
[PlyCount "44"]
[EventDate "2022.11.29"]
[EventType "tourn"]
[EventCountry "CRO"]
[SourceTitle "playchess.com"]
[Source "ChessBase"]
[SourceQuality "1"]
[TimeControl "40/5400+30:1800+30"]

{[%evp 10,44,1,27,15,0,18,5,6,15,25,38,47,15,16,26,18,7,14,0,0,0,0,0,0,0,0,0,0,0,0,0,13,4,15,0,15]} 1. c4 {[%emt 0:01:04]} e5 {[%emt 0:00:02]} 2. g3 {[%emt 0:00:03]} Nf6 {[%emt 0:00:07]} 3. Bg2 {[%emt 0:00:06]} d5 {[%emt 0:00:03]} 4. cxd5 {[%emt 0:00:04]} Nxd5 {[%emt 0:00:02]} 5. Nc3 {[%emt 0:00:05]} Nb6 {[%emt 0:00:07]} 6. e3 {[%emt 0:00:04]} Nc6 {[%emt 0:00:02] A22: English Opening: 1...e5 2 Nc3 Nf6.} 7. Nge2 {[%emt 0:00:08]} Be7 {[%emt 0:00:03]} 8. O-O {[%emt 0:00:04]} O-O {[%emt 0:00:03]} 9. f4 {[%emt 0:00:05]} Bf5 {[%emt 0:00:10]} 10. fxe5 {[%emt 0:00:03]} Bd3 {[%emt 0:00:03]} 11. e6 {[%emt 0:00:09] Inhibits Qd7.} fxe6 {[%emt 0:00:01][%cal Bf7e6,Be6e5][%mdl 32]} 12. Rxf8+ {[%emt 0:00:06]} Qxf8 {[%emt 0:00:02]} 13. Nf4 {[%emt 0:00:06] Inhibits g5. The position is equal.} Bf5 {[%emt 0:00:03]} 14. g4 {[%emt 0:00:14]} e5 $1 {[%emt 0:00:04] [#]} 15. Qb3+ $146 {[%emt 0:00:06]} ({Predecessor:} 15. Nh3 Bg6 16. b3 Rd8 17. Qf1 Qe8 18. Ne4 Nb4 {½-½ (18) Salomo,A (2259)-Moegito,A (2251) ICCF email 2020}) 15... Qf7 {[%emt 0:00:03]} 16. Qxf7+ {[%emt 0:00:07]} Kxf7 {[%emt 0:00:01]} 17. Nfd5 $36 {[%emt 0:00:06][%mdl 2048] Black is under pressure.} Bxg4 {[%emt 0:00:09]} 18. Nxe7 {[%emt 0:00:04]} Kxe7 {[%emt 0:00:03]} 19. b3 {[%emt 0:00:05]} Rd8 {[%emt 0:00:03]} 20. Ba3+ {[%emt 0:00:03]} Kf7 {[%emt 0:00:02]} 21. Rf1+ {[%emt 0:00:06][%mdl 1024] White has compensation.} Kg6 {[%emt 0:00:01]} 22. Rf2 {[%emt 0:00:08]} Bf5 {[%emt 1:40:16] Weighted Error Value: White=0.04 (flawless) /Black=0.04 (flawless)} 1/2-1/2

[Event "Croatian Championship 2022"]
[Site "Split"]
[Date "2022.12.01"]
[Round "3.3"]
[White "Doric, Darko"]
[Black "Zelcic, Robert"]
[Result "0-1"]
[ECO "E36"]
[WhiteElo "2446"]
[BlackElo "2496"]
[Annotator "TA"]
[PlyCount "114"]
[EventDate "2022.11.29"]
[EventType "tourn"]
[EventCountry "CRO"]
[SourceTitle "playchess.com"]
[Source "ChessBase"]
[SourceQuality "1"]
[TimeControl "40/5400+30:1800+30"]

{[%evp 15,114,0,0,0,0,0,0,0,12,1,1,0,0,0,0,0,0,6,4,0,0,12,4,10,26,8,46,10,30,12,27,0,9,20,36,31,50,29,64,0,0,-12,0,-33,0,0,15,0,0,0,2,0,80,80,78,0,0,0,0,-11,-7,-9,-7,-2,-13,-31,0,0,0,0,0,0,0,0,0,0,0,0,0,0,0,0,0,0,0,0,0,0,0,0,0,-126,-129,-180,0,-73,-5,-316,-316,-316,-316]} 1. d4 {[%emt 0:00:04]} Nf6 {[%emt 0:00:05]} 2. c4 {[%emt 0:00:10]} e6 {[%emt 0:00:04]} 3. Nc3 {[%emt 0:00:11]} Bb4 {[%emt 0:00:06]} 4. Qc2 {[%emt 0:00:06]} O-O {[%emt 0:00:45]} 5. a3 {[%emt 0:00:06]} Bxc3+ {[%emt 0:00:04]} 6. Qxc3 {[%emt 0:00:06]} d5 {[%emt 0:00:05]} 7. Nf3 {[%emt 0:00:50]} dxc4 {[%emt 0:01:24]} 8. Qxc4 {[%emt 0:00:09]} b6 {[%emt 0:00:03]} 9. Bg5 {[%emt 0:00:37] E36: Nimzo-Indian: Classical: 4...d5 5 a3.} Ba6 {[%emt 0:00:37]} 10. Qa4 {[%emt 0:00:20]} h6 $1 {[%emt 0:00:05][%mdl 4] now scores much better than the old 10...c5.} 11. Bxf6 {[%emt 0:04:27] The position is equal.} Qxf6 {[%emt 0:00:06]} 12. g3 {[%emt 0:00:40]} c5 {[%emt 0:19:11]} 13. Bg2 {[%emt 0:00:09] Black must now prevent Ne5.} Bb7 $1 {[%emt 0:00:04]} 14. O-O {[%emt 0:00:32]} Bc6 {[%emt 0:01:28]} 15. Qc4 {[%emt 0:01:39]} Rc8 {[%emt 0:08:32] [#]} 16. Rac1 $146 {[%emt 0:10:05]} ({Predecessor:} 16. dxc5 Nd7 17. Qd4 Qxd4 18. Nxd4 Bxg2 19. Kxg2 Rxc5 20. Rac1 Rac8 21. Nb3 Rc2 22. Rfd1 {½-½ (33) Jacobsen,M (2050)-Lindgren,P (2260) Copenhagen 2013}) 16... Nd7 {[%emt 0:00:45]} 17. Qc3 {[%emt 0:13:43][%cal Rd4c5]} Rab8 {[%emt 1:05:36]} 18. Rfd1 {[%emt 0:11:32][%cal Rd4c5]} Bb5 {[%emt 0:00:00]} 19. Qe3 {[%emt 0:11:19]} c4 {[%emt 0:00:00]} 20. Nd2 {[%emt 0:01:13]} Qe7 {[%emt 0:00:00]} (20... Ba4 $5 {[%cal Ra4d1]}) 21. Ne4 {[%emt 0:06:45]} (21. Rc3 $5 {[%cal Rd1c1]}) 21... Ba4 {[%emt 0:00:00]} 22. Rd2 {[%emt 0:00:16]} Nf6 {[%emt 0:00:00]} 23. Nc3 {[%emt 0:00:44]} Bb3 {[%emt 0:00:00]} 24. Qf4 {[%emt 0:03:16]} Rd8 {[%emt 0:00:00]} 25. e4 {[%emt 0:00:29]} b5 {[%emt 0:00:00][%cal Oe6e5]} 26. e5 {[%emt 0:06:21]} Nd5 {[%emt 0:00:00]} 27. Bxd5 {[%emt 0:02:52]} (27. Nxd5 $14 exd5 28. Re2) 27... exd5 $11 {[%emt 0:00:00]} 28. Qf3 {[%emt 0:00:45]} a5 {[%emt 0:00:00]} 29. Kg2 {[%emt 0:02:11]} Qd7 {[%emt 0:00:00]} 30. Ne2 {[%emt 0:00:30][%cal Bc3e2,Be2f4,Bf4e6,Be6c5][%mdl 32]} b4 {[%emt 0:00:00]} 31. axb4 {[%emt 0:00:03]} axb4 {[%emt 0:00:00]} 32. Nf4 {[%emt 0:00:18]} Ra8 {[%emt 0:00:00]} 33. Re2 {[%emt 0:00:39]} Qf5 {[%emt 0:01:32]} (33... Ba4 $11 {remains equal.}) 34. g4 $16 {[%emt 0:00:26]} Qg5 {[%emt 0:00:12]} 35. e6 {[%emt 0:03:31]} (35. Rce1 $16) 35... fxe6 $11 {[%emt 0:00:17]} 36. Re5 {[%emt 0:01:13]} Qf6 {[%emt 0:01:19]} 37. Nxe6 {[%emt 0:04:13]} Qxf3+ {[%emt 0:00:06]} 38. Kxf3 {[%emt 0:00:03]} Rd7 {[%emt 0:02:36] Threatening ...Ra2.} 39. Nc5 {[%emt 0:01:35]} Rf7+ {[%emt 0:00:13]} 40. Rf5 {[%emt 0:00:00]} Ba2 {[%emt 0:00:00]} 41. Rxf7 {[%emt 0:09:56]} Kxf7 {[%emt 0:01:45][%mdl 4096] Endgame KRB-KRN} 42. Ke3 {[%emt 0:01:34]} g5 {[%emt 0:05:19]} 43. Kd2 {[%emt 0:03:02]} Ra7 {[%emt 0:12:39]} 44. Re1 {[%emt 0:05:09]} Kg7 {[%emt 0:00:13]} 45. f3 {[%emt 0:03:41]} Kh7 {[%emt 0:01:49]} 46. Ra1 {[%emt 0:09:31]} Kg6 {[%emt 0:01:08]} 47. Re1 {[%emt 0:00:26]} Kh7 {[%emt 0:02:34]} 48. Ra1 {[%emt 0:07:29]} h5 {[%emt 0:00:05]} 49. h3 {[%emt 0:03:09]} Kg6 {[%emt 0:00:18]} 50. Re1 {[%emt 0:02:11]} hxg4 {[%emt 0:00:13]} 51. fxg4 {[%emt 0:03:39]} Rf7 {[%emt 0:01:04]} 52. Re6+ {[%emt 0:00:15]} Kh7 {[%emt 0:00:12]} 53. Ke3 {[%emt 0:02:12]} (53. Ke2 $11) 53... Rf1 $1 $17 {[%emt 0:03:12] ...c3 is the strong threat.} 54. Rb6 {[%emt 0:00:27] [#]} (54. Re7+ $17 Kg6 55. Ra7) 54... b3 $2 {[%emt 0:01:12]} (54... c3 $1 $19 {[%cal Rc3b2]} 55. bxc3 (55. Rxb4 $2 {is the wrong capture.} c2 $19) (55. Rb7+ $2 Kg8 $19) 55... bxc3) 55. Na4 {[%emt 0:00:31]} (55. Ne6 $11) 55... Rh1 {[%emt 0:00:57] Black is more active.} (55... Bb1 $17 {Threatens to win with ...Rh1.} 56. Rb7+ Kg6 57. Rb6+ Kf7 58. Rb7+ Ke6 59. Rb6+ Kf7 60. Rb7+ Ke6 61. Nc5+ Kd6 62. Rb6+ Kc7 63. Rb7+ Kc6) 56. Rd6 $2 {[%emt 0:00:13][%mdl 8192]} (56. Rb5 $11 {and White has nothing to worry.}) 56... Rxh3+ $19 {[%emt 0:00:33]} 57. Kf2 {[%emt 0:00:36] [#]} c3 $1 {[%emt 0:00:53] Weighted Error Value: White=0.24 (precise) /Black=0.14 (very precise)} 0-1

[Event "Croatian Championship 2022"]
[Site "Split"]
[Date "2022.12.01"]
[Round "3.4"]
[White "Saric, Ante"]
[Black "Saric, Ivan"]
[Result "0-1"]
[ECO "D79"]
[WhiteElo "2504"]
[BlackElo "2674"]
[Annotator "TA"]
[PlyCount "100"]
[EventDate "2022.11.29"]
[EventType "tourn"]
[EventCountry "CRO"]
[SourceTitle "playchess.com"]
[Source "ChessBase"]
[SourceQuality "1"]
[TimeControl "40/5400+30:1800+30"]

{[%evp 18,100,10,7,9,0,23,21,23,27,20,8,13,0,0,0,0,-3,0,0,44,35,45,25,27,0,0,-93,-93,-92,-92,-93,-93,-92,-93,-100,-91,-101,-92,-132,-130,-114,-124,-247,-217,-244,-221,-311,-311,-372,-372,-462,-454,-945,-927,-1738,-1677,-1782,-1770,-1699,-1699,-5724,-5197,-3290,-1724,-2703,-1793,-1722,-1693,-29970,-29970,-29974,-29975,-29974,-29970,-29974,-29975,-29977,-29978,-29976,-29973,-29984,-29985,-29988,-29989]} 1. d4 {[%emt 0:00:04]} Nf6 {[%emt 0:00:06]} 2. Nf3 {[%emt 0:00:04]} g6 {[%emt 0:00:18]} 3. c4 {[%emt 0:00:06]} Bg7 {[%emt 0:00:04]} 4. g3 {[%emt 0:00:05]} c6 {[%emt 0:01:55]} 5. Nc3 {[%emt 0:02:08]} d5 {[%emt 0:00:58]} 6. cxd5 {[%emt 0:00:05]} cxd5 {[%emt 0:00:10]} 7. Ne5 {[%emt 0:01:14]} O-O {[%emt 0:00:16]} 8. Bg2 {[%emt 0:00:05]} Nc6 {[%emt 0:00:33] 8...Bf5 is a critical line.} 9. O-O {[%emt 0:00:18]} Bf5 {[%emt 0:00:09]} 10. Bf4 {[%emt 0:03:56]} (10. Nxc6 {simplifies} bxc6 11. b3 Re8 12. Bb2) 10... Rc8 {[%emt 0:02:50] D79: Fianchetto Grünfeld: Symmetrical Variation (6 0-0 c6 7 cxd5 cxd5).} 11. Rc1 {[%emt 0:11:05]} h6 {[%emt 0:00:17]} (11... Qb6 $5 {[%cal Rb6b2]}) 12. Nxc6 {[%emt 0:06:12]} Rxc6 {[%emt 0:00:04] The position is equal.} 13. Be5 {[%emt 0:04:06]} e6 {[%emt 0:00:37]} 14. e3 {[%emt 0:01:40] And now Bxf6 would win.} g5 {[%emt 0:00:30] [#]} 15. Re1 $146 {[%emt 0:18:50]} ({Predecessor:} 15. Na4 Rxc1 16. Qxc1 b6 17. Qc6 Ne4 18. f3 Nd2 19. Bxg7 Kxg7 20. Rc1 g4 21. fxg4 Bxg4 {1-0 (52) Choma,E (2298)-Cruz,M (2100) Paranavai 2009}) 15... Qa5 {[%emt 0:04:22]} 16. Qb3 {[%emt 0:03:04]} Rfc8 {[%emt 0:05:32][%cal Ob7b5]} 17. Bxf6 {[%emt 0:15:00]} Bxf6 {[%emt 0:00:12][%cal Bg7f6,Bf6d8,Bd8b6][%mdl 32]} 18. Qxb7 {[%emt 0:00:22]} Bd8 {[%emt 0:02:31]} (18... Qd8 $5 {[%cal Rc6b6]}) 19. Bf1 {[%emt 0:08:23]} Bb6 {[%emt 0:06:00]} 20. Qa6 {[%emt 0:05:19]} (20. Bb5 $5 {[%cal Rb5c6]} R6c7 21. Qa6 $14) 20... Qb4 {[%emt 0:02:15]} 21. Qb5 {[%emt 0:02:30]} (21. Bb5 $5 {[%cal Rb5c6]} R6c7 22. Re2 $14) 21... Ba5 {[%emt 0:00:46]} 22. a3 {[%emt 0:00:53]} (22. Red1 $11) 22... Qxb5 $17 {[%emt 0:00:12]} 23. Bxb5 {[%emt 0:00:03]} Bxc3 {[%emt 0:00:58]} 24. bxc3 {[%emt 0:03:24]} Rxc3 {[%emt 0:00:04]} 25. Rxc3 {[%emt 0:01:34]} Rxc3 {[%emt 0:00:04][%mdl 4096] Endgame KRB-KRB} 26. Ra1 {[%emt 0:00:18]} a5 {[%emt 0:01:00]} 27. Kf1 {[%emt 0:01:54]} g4 {[%emt 0:05:12]} 28. Ba4 {[%emt 0:03:21] [#]} Bc2 $1 {[%emt 0:02:26] Black is more active.} 29. Bxc2 {[%emt 0:04:02]} Rxc2 {[%emt 0:00:09] KR-KR} 30. Rb1 {[%emt 0:02:26]} (30. Re1 $17 {was necessary.}) 30... Rc3 {[%emt 0:00:25]} 31. a4 {[%emt 0:00:31]} Ra3 {[%emt 0:00:05]} 32. Rb8+ {[%emt 0:01:39]} (32. Rb2 $142) 32... Kg7 $19 {[%emt 0:00:04]} 33. Kg2 {[%emt 0:00:17]} Rxa4 {[%emt 0:00:06]} 34. Ra8 {[%emt 0:00:12]} Ra2 {[%emt 0:00:09]} 35. h4 {[%emt 0:01:20]} (35. h3 $142 gxh3+ 36. Kxh3) 35... h5 {[%emt 0:03:20]} 36. Rb8 {[%emt 0:01:02]} a4 {[%emt 0:00:06][%cal Ba5a4,Ba4a3][%mdl 32]} 37. Ra8 {[%emt 0:00:35]} a3 {[%emt 0:00:18]} 38. Ra7 {[%emt 0:00:37]} Kg6 {[%emt 0:00:23]} 39. Ra6 {[%emt 0:00:34]} Kf5 {[%emt 0:00:57]} 40. Ra7 {[%emt 0:00:00]} f6 {[%emt 0:00:00]} 41. Rh7 {[%emt 0:06:50]} Kg6 {[%emt 0:03:45]} 42. Ra7 {[%emt 0:00:21]} Ra1 {[%emt 0:00:06] [#] ( -> ...Kf5)} 43. Ra8 {[%emt 0:10:05]} Kf5 {[%emt 0:01:35] Black mates.} 44. Ra6 {[%emt 0:00:04]} a2 {[%emt 0:00:18]} 45. Ra4 {[%emt 0:08:26]} Ke4 {[%emt 0:00:05]} 46. Ra3 {[%emt 0:01:55]} e5 {[%emt 0:00:14]} 47. Ra5 {[%emt 0:02:51]} exd4 {[%emt 0:00:06]} 48. Ra4 {[%emt 0:00:17]} Kd3 {[%emt 0:00:58]} 49. Rxd4+ {[%emt 0:02:52]} Kc3 {[%emt 0:00:03]} 50. Rxd5 {[%emt 0:00:39]} Rb1 {[%emt 0:00:10] Weighted Error Value: White=0.60/Black=0.15 (very precise)} 0-1

[Event "Croatian Championship 2022"]
[Site "Split"]
[Date "2022.12.01"]
[Round "3.5"]
[White "Jovanovic, Zoran"]
[Black "Brkic, Ante"]
[Result "1/2-1/2"]
[ECO "C47"]
[WhiteElo "2513"]
[BlackElo "2610"]
[Annotator "TA"]
[PlyCount "44"]
[EventDate "2022.11.29"]
[EventType "tourn"]
[EventCountry "CRO"]
[SourceTitle "playchess.com"]
[Source "ChessBase"]
[SourceQuality "1"]
[TimeControl "40/5400+30:1800+30"]

{[%evp 9,44,0,42,6,16,15,14,13,13,6,10,7,4,0,7,7,4,8,12,3,4,0,9,0,0,0,10,0,24,0,0,0,0,0,0,0,0]} 1. e4 {[%emt 0:00:02]} e5 {[%emt 0:00:03]} 2. Nf3 {[%emt 0:00:04]} Nc6 {[%emt 0:00:05]} 3. Nc3 {[%emt 0:00:03]} Nf6 {[%emt 0:00:04][%cal Bg8f6,Bf6e4,Be4c3,Bc3d1][%mdl 32]} 4. d4 {[%emt 0:00:04]} exd4 {[%emt 0:00:05]} 5. Nxd4 {[%emt 0:00:04]} Nxe4 {[%emt 0:00:06]} 6. Nxc6 {[%emt 0:00:03] C47: Scotch Four Knights and Four Knights with 4 g3.} (6. Nxe4 {is interesting.} Qe7 7. f3 d5 8. Bb5) 6... Nxc3 {[%emt 0:00:06]} 7. Nxd8 {[%emt 0:00:05]} Nxd1 {[%emt 0:00:04]} 8. Nxf7 {[%emt 0:00:03][%mdl 64] [#] Decoy} Kxf7 {[%emt 0:00:07]} ({Don't do} 8... Nxf2 9. Nxh8 Nxh1 10. Be3 $16) 9. Bc4+ {[%emt 0:00:05]} Kf6 {[%emt 0:00:08][%cal Od7d5]} 10. Kxd1 {[%emt 0:00:05]} c6 {[%emt 0:00:05]} 11. Be3 {[%emt 0:00:03]} d5 {[%emt 0:00:06]} 12. Bd3 {[%emt 0:00:02]} Bd6 {[%emt 0:00:07] [#]} 13. Re1 $146 {[%emt 0:00:04]} ({Predecessor:} 13. h4 h5 14. Kd2 Kf7 15. Rae1 Bd7 16. c3 a6 17. Kc2 Rhe8 18. Bg5 g6 19. Kd2 Rxe1 20. Rxe1 {½-½ (34) Berg,E (2533)-Bersamina,P (2429) Chennai 2022}) 13... Kf7 {[%emt 0:00:04]} 14. c3 {[%emt 0:00:04]} g6 {[%emt 0:00:05]} ({But not} 14... Bxh2 15. g3 $16) 15. Kc2 {[%emt 0:00:02]} Bf5 {[%emt 0:00:07]} 16. a4 {[%emt 0:00:03]} Rhe8 {[%emt 0:00:06]} (16... Bxh2 $2 17. g3 $18) 17. b4 {[%emt 0:00:02]} a6 {[%emt 0:00:08]} ({Don't play} 17... Bxh2 18. Rh1 Be5 19. Rxh7+ Bg7 20. Rah1 $16) 18. g3 {[%emt 0:00:03]} Re6 {[%emt 0:00:12]} 19. Bb6 {[%emt 0:00:13]} Bxd3+ {[%emt 0:00:04] The position is equal.} 20. Kxd3 {[%emt 0:00:03]} Rxe1 {[%emt 0:00:04]} 21. Rxe1 {[%emt 0:00:02]} Re8 {[%emt 0:00:04]} 22. Rxe8 {[%emt 0:00:07]} Kxe8 {[%emt 0:00:01] An interesting draw.   Weighted Error Value: White=0.07 (flawless) /Black=0.06 (flawless)} 1/2-1/2

[Event "Croatian Championship 2022"]
[Site "Split"]
[Date "2022.12.01"]
[Round "3.6"]
[White "Stevic, Hrvoje"]
[Black "Kurajica, Bojan"]
[Result "1/2-1/2"]
[ECO "B22"]
[WhiteElo "2543"]
[BlackElo "2487"]
[Annotator "TA"]
[PlyCount "29"]
[EventDate "2022.11.29"]
[EventType "tourn"]
[EventCountry "CRO"]
[SourceTitle "playchess.com"]
[Source "ChessBase"]
[SourceQuality "1"]
[TimeControl "40/5400+30:1800+30"]

{[%evp 11,29,8,5,13,39,33,19,0,0,0,6,-4,0,-23,-23,-44,-20,-44,-37,-42]} 1. e4 {[%emt 0:03:56]} c5 {[%emt 0:00:06]} 2. c3 {[%emt 0:00:07]} d5 {[%emt 0:00:15]} 3. exd5 {[%emt 0:00:08]} Qxd5 {[%emt 0:00:06]} 4. d4 {[%emt 0:00:07]} Nf6 {[%emt 0:00:15]} 5. Nf3 {[%emt 0:00:10]} Bg4 {[%emt 0:00:34]} 6. dxc5 {[%emt 0:00:32]} Qxc5 {[%emt 0:01:57]} (6... Qxd1+ {simplifies} 7. Kxd1 e6 8. Bb5+ Nc6) 7. h3 $1 {[%emt 0:01:02][%mdl 4] is more profitable than 7.Na3 at the moment. B22: Sicilian: 2 c3.} Bd7 {[%emt 0:04:02] [#]} 8. Bf4 $146 {[%emt 0:19:02]} ({Predecessor:} 8. Be3 Qc7 9. Na3 Nc6 10. Nb5 Qb8 11. Qd2 a6 12. Nbd4 e5 13. Nb3 Qc7 14. Rd1 Rd8 {1-0 (49) Leniart,A (2479)-Laurusas,T (2563) Bydgoszcz 2022}) 8... e6 {[%emt 0:14:14]} 9. Ne5 {[%emt 0:09:51] The position is equal.} Nd5 {[%emt 0:06:11]} ({But not} 9... Ne4 10. Qc2 Nf6 11. Nd2 $14) 10. Bh2 {[%emt 0:18:06]} Bd6 {[%emt 0:12:49]} 11. Na3 {[%emt 0:04:24]} O-O {[%emt 0:05:56]} 12. Qd2 {[%emt 0:06:17]} Rd8 {[%emt 0:20:06]} 13. Be2 {[%emt 0:17:59]} Be8 {[%emt 0:02:35]} 14. Bf3 {[%emt 0:00:33]} Be7 {[%emt 0:04:17]} 15. O-O {[%emt 0:04:04] Weighted Error Value: White=0.11 (very precise) /Black=0.08 (flawless)} 1/2-1/2

[Event "Croatian Championship 2022"]
[Site "Split"]
[Date "2022.12.02"]
[Round "4.1"]
[White "Martinovic, Sasa"]
[Black "Kurajica, Bojan"]
[Result "1/2-1/2"]
[ECO "E12"]
[WhiteElo "2557"]
[BlackElo "2487"]
[Annotator "TA"]
[PlyCount "91"]
[EventDate "2022.11.29"]
[EventType "tourn"]
[EventCountry "CRO"]
[SourceTitle "playchess.com"]
[Source "ChessBase"]
[SourceQuality "1"]
[TimeControl "40/5400+30:1800+30"]

{[%evp 10,91,35,31,39,32,39,33,32,27,38,45,32,7,27,31,41,34,54,55,63,47,53,41,57,58,50,24,76,63,88,57,91,64,80,51,52,31,37,25,44,26,33,0,0,0,6,0,77,75,133,93,88,81,78,83,108,102,125,115,115,133,151,68,80,78,86,83,84,53,120,0,0,0,0,0,0,0,0,0,0,0,0,0]} 1. d4 {[%emt 0:00:01]} Nf6 {[%emt 0:00:07]} 2. c4 {[%emt 0:00:03]} e6 {[%emt 0:00:07]} 3. Nf3 {[%emt 0:00:03]} b6 {[%emt 0:00:12]} 4. a3 {[%emt 0:00:08]} g6 {[%emt 0:00:27]} 5. Nc3 {[%emt 0:00:14]} Bb7 {[%emt 0:00:06]} 6. Qc2 {[%emt 0:00:10]} d5 {[%emt 0:02:53] E12: Queen's Indian: Unusual White 4th moves, 4 a3, 4 Nc3 Bb7 5 a3 and 4 Nc3 Bb7 .} 7. cxd5 {[%emt 0:00:48]} exd5 {[%emt 0:00:55]} 8. Bf4 {[%emt 0:02:35]} a6 {[%emt 0:00:11] Against Nb5. White is slightly better.} 9. e3 {[%emt 0:03:07] [#]} Bd6 $146 {[%emt 0:08:35]} ({Predecessor:} 9... Bg7 10. Be2 O-O 11. O-O Nbd7 12. Ne5 Rc8 13. Bf3 Nxe5 14. Bxe5 Ne8 15. Bxg7 Kxg7 {½-½ (50) Lazavik,D (2424)-De Silva,L (2114) Chess.com INT 2020}) 10. Bg5 {[%emt 0:07:53]} Nbd7 {[%emt 0:01:00]} 11. Bd3 {[%emt 0:03:59]} Qe7 {[%emt 0:13:22] Prevents e4.} (11... c5 {keeps more tension.} 12. e4 cxd4 13. Nxd5 h6) 12. O-O {[%emt 0:05:36][%cal Oe3e4] [#] Threatens to win with e4!} Qe6 {[%emt 0:02:17] Prevents e4.} 13. Bh6 {[%emt 0:06:18]} Ng4 {[%emt 0:07:10]} 14. Bf4 {[%emt 0:00:20]} f5 {[%emt 0:01:16]} 15. Rac1 {[%emt 0:03:46]} O-O {[%emt 0:01:31]} 16. Ne2 {[%emt 0:06:07] Bxd6 is the strong threat.} Rac8 {[%emt 0:01:05]} 17. Bxd6 {[%emt 0:11:02]} Qxd6 {[%emt 0:01:00]} 18. Nf4 {[%emt 0:00:17]} Ngf6 {[%emt 0:05:34]} (18... c5 $11 {keeps the balance.}) 19. Qe2 $16 {[%emt 0:04:20]} Ra8 {[%emt 0:07:16]} 20. Rfd1 {[%emt 0:06:53] White is more active.} Rfe8 {[%emt 0:01:15]} 21. Qe1 {[%emt 0:02:58]} a5 {[%emt 0:04:30]} 22. Bf1 {[%emt 0:00:53]} Re7 {[%emt 0:04:38]} 23. Qc3 {[%emt 0:03:35]} c6 {[%emt 0:05:37]} 24. a4 {[%emt 0:01:16]} Rb8 {[%emt 0:03:14]} 25. Rc2 {[%emt 0:02:36]} Ne4 {[%emt 0:01:03]} 26. Qb3 {[%emt 0:01:32]} g5 {[%emt 0:01:23]} 27. Nd3 {[%emt 0:00:53]} c5 {[%emt 0:01:18]} 28. Qa3 {[%emt 0:03:19]} Qe6 {[%emt 0:02:14]} (28... Rd8 $11 {remains equal.}) 29. dxc5 {[%emt 0:03:27]} Ndxc5 {[%emt 0:03:02]} (29... bxc5 $142 30. Nxc5 Nexc5) 30. Nxc5 {[%emt 0:01:25]} bxc5 {[%emt 0:00:22]} 31. Rxc5 {[%emt 0:00:12]} (31. Nd2 {simplifies} Nxd2 32. Rcxd2 Qb6 33. g3) 31... Nxc5 {[%emt 0:00:20]} 32. Qxc5 {[%emt 0:00:08]} Qf6 {[%emt 0:04:15]} 33. Qxa5 {[%emt 0:03:36]} Qxb2 {[%emt 0:01:08]} 34. Nxg5 {[%emt 0:02:58]} Ra8 {[%emt 0:02:05] [#]} 35. Qc5 {[%emt 0:05:25]} Qf6 {[%emt 0:00:09]} 36. Nh3 {[%emt 0:01:32]} (36. h4 $16) 36... Rxa4 {[%emt 0:01:12]} 37. Rb1 {[%emt 0:04:34][%cal Ob1b7] Strongly threatening Rxb7!} Ra8 {[%emt 0:04:09][%cal Od5d4]} 38. Rb6 {[%emt 0:01:26] Against d4} ({Much less strong is} 38. Nf4 Rc8 39. Qa5 Rec7 $11) 38... Qe5 {[%emt 0:03:49]} 39. Qb4 {[%emt 0:03:13]} Qc7 {[%emt 0:01:38]} (39... Bc8 $14) 40. Qb2 {[%emt 0:00:00]} (40. Nf4 $16) 40... Ra1 $11 {[%emt 0:00:00] The position is equal.} 41. Qxa1 {[%emt 0:10:04]} Qxb6 {[%emt 0:04:02]} 42. Nf4 {[%emt 0:00:34]} Rxe3 {[%emt 0:09:39]} 43. Nxd5 {[%emt 0:06:44]} Bxd5 {[%emt 0:00:11]} 44. fxe3 {[%emt 0:00:02]} Qxe3+ {[%emt 0:00:09]} 45. Kh1 {[%emt 0:00:02]} Qf2 {[%emt 0:02:40]} 46. Qd1 {[%emt 0:02:31] Weighted Error Value: White=0.15 (very precise) /Black=0.16 (very precise)} 1/2-1/2